bitfinex/quotes_SOLUSD_20250726
["timestamp","ask_amount","ask_price","bid_price","bid_amount"]
[1753531262196,0.71,188.04,188.03,96.89018834]
[1753531262716,0.03,188.04,188.03,96.89018834]
[1753531266422,0.03,188.04,188.03,9.49018834]
[1753531266621,0.73,188.04,188.01,4.17188807]
[1753531267298,0.73,188.04,188.0,9.491037]
[1753531271825,0.73,188.04,188.01,9.49063512]
[1753531272332,0.7,188.03,188.01,9.49063512]
[1753531278231,0.7,188.03,188.01,5.31874705]
[1753531278435,0.7,188.03,188.01,9.49063512]
[1753531281021,0.7,188.03,188.01,5.31874705]
[1753531281440,0.7,188.03,188.02,4.17188807]
[1753531281642,0.7,188.03,188.01,9.49063512]
[1753531283212,0.7,188.03,188.0,4.23188807]
[1753531284146,0.7,188.03,188.0,9.55084183]
[1753531285350,0.03,188.04,188.0,0.06]
[1753531285520,0.7,188.02,188.0,0.06]
[1753531285723,0.53033517,188.01,188.0,0.06]
[1753531286024,21.48690721,188.01,188.0,0.06]
[1753531286214,22.18690721,188.01,188.0,0.06]
[1753531287425,27.50577322,188.01,188.0,0.06]
[1753531288236,35.00680815,188.01,188.0,0.06]
[1753531288439,31.05890066,188.01,188.0,0.06]
[1753531288622,31.05890066,188.01,187.99,0.06]
[1753531288623,42.92684554,188.0,187.99,0.06]
[1753531288817,42.78468397,187.96,187.95,0.06]
[1753531289022,84.72906878,187.96,187.95,0.06]
[1753531289236,85.57123035,187.96,187.95,0.06]
[1753531289437,90.89151126,187.96,187.95,0.06]
[1753531290067,37.63033517,187.96,187.95,0.06]
[1753531290233,37.1,187.96,187.95,0.06]
[1753531291959,1.23033517,187.98,187.95,0.06]
[1753531292127,37.12,187.97,187.95,0.06]
[1753531292333,37.65033517,187.97,187.95,0.06]
[1753531293550,37.12,187.97,187.95,0.06]
[1753531294047,37.12,187.97,187.95,4.89188807]
[1753531294347,0.7,188.0,187.96,4.17188807]
[1753531294348,1.23033517,188.0,187.96,4.17188807]
[1753531294653,37.12,187.99,187.96,4.17188807]
[1753531294846,37.82,187.99,187.96,4.17188807]
[1753531297742,37.85,187.99,187.96,4.17188807]
[1753531297933,37.15,187.99,187.96,4.17188807]
[1753531298129,0.72,187.98,187.96,4.17188807]
[1753531299052,37.15,187.99,187.96,9.4921121]
[1753531299254,0.03,187.99,187.98,4.17188807]
[1753531299730,0.03,187.99,187.98,4.83188807]
[1753531300327,0.03,187.99,187.98,10.15160293]
[1753531300527,0.03,187.99,187.98,9.49160293]
[1753531300745,0.03,187.99,187.96,4.17188807]
[1753531300746,0.75,187.99,187.96,4.17188807]
[1753531300952,0.72,187.98,187.96,4.17188807]
[1753531301462,0.03,187.99,187.96,4.17188807]
[1753531301640,0.75,187.99,187.96,4.17188807]
[1753531301969,0.03,187.99,187.95,26.06]
[1753531302134,0.72,187.98,187.95,0.06]
[1753531302334,0.72,187.97,187.95,0.06]
[1753531307648,0.53033517,187.98,187.95,0.06]
[1753531307841,1.25033517,187.98,187.95,0.06]
[1753531308836,0.72,187.97,187.95,0.06]
[1753531310274,0.53033517,187.98,187.95,0.06]
[1753531310441,0.72,187.96,187.95,0.06]
[1753531311351,1.25033517,187.96,187.95,0.06]
[1753531311560,22.20690721,187.96,187.95,0.06]
[1753531312454,27.52718812,187.96,187.95,0.06]
[1753531312763,27.66934969,187.96,187.95,0.06]
[1753531313684,32.04433617,187.96,187.95,0.06]
[1753531314551,27.81151126,187.96,187.95,0.06]
[1753531318965,22.49123035,187.96,187.95,0.06]
[1753531319680,55.43934228,187.96,187.95,0.06]
[1753531320557,9.49193498,187.97,187.95,0.06]
[1753531320558,0.53033517,187.97,187.95,0.72]
[1753531320862,37.12,187.97,187.95,4.23188807]
[1753531321061,0.72,187.96,187.95,0.06]
[1753531321778,21.67657204,187.96,187.95,0.06]
[1753531322583,26.99685295,187.96,187.95,0.06]
[1753531323668,27.28117609,187.96,187.95,0.06]
[1753531326486,64.40117609,187.96,187.95,0.06]
[1753531331892,27.28117609,187.96,187.95,0.06]
[1753531332088,64.40117609,187.96,187.95,0.06]
[1753531334003,67.95165886,187.96,187.95,0.06]
[1753531334503,64.40117609,187.96,187.95,0.06]
[1753531338987,63.68117609,187.96,187.95,0.06]
[1753531339609,64.21151126,187.96,187.95,0.06]
[1753531340410,64.92151126,187.96,187.95,0.06]
[1753531342089,67.697039,187.96,187.95,0.06]
[1753531342907,71.24678791,187.96,187.95,0.06]
[1753531349503,70.53678791,187.96,187.95,0.06]
[1753531350105,33.41678791,187.96,187.95,0.06]
[1753531350298,70.53678791,187.96,187.95,0.06]
[1753531352527,33.41678791,187.96,187.95,0.06]
[1753531352695,70.53678791,187.96,187.95,0.06]
[1753531354895,33.41678791,187.96,187.95,0.06]
[1753531355095,70.53678791,187.96,187.95,0.06]
[1753531355291,71.24678791,187.96,187.95,0.06]
[1753531357017,34.12678791,187.96,187.95,0.06]
[1753531357220,71.24678791,187.96,187.95,0.06]
[1753531358819,69.74656078,187.96,187.95,0.06]
[1753531362927,23.64029579,187.96,187.95,0.06]
[1753531363220,0.53033517,187.98,187.95,0.71]
[1753531363395,0.56033517,187.99,187.97,2.67166094]
[1753531363596,0.03,187.99,187.98,2.67166094]
[1753531363798,0.03,187.99,187.98,3.32166094]
[1753531364824,0.03,187.99,187.98,10.1390637]
[1753531365617,0.03,187.99,187.98,0.65]
[1753531366529,0.03,187.99,187.96,0.65]
[1753531366530,0.56033517,187.99,187.96,0.65]
[1753531366730,37.1,187.98,187.96,0.65]
[1753531367218,37.1,187.98,187.95,9.54987497]
[1753531367411,37.1,187.98,187.97,0.65]
[1753531367814,37.1,187.98,187.95,9.54987497]
[1753531367815,37.1,187.98,187.95,10.19987497]
[1753531368022,37.1,187.98,187.96,0.65]
[1753531370411,37.1,187.98,187.97,0.65]
[1753531374414,37.1,187.98,187.96,4.81934884]
[1753531378438,0.56033517,187.99,187.96,4.81934884]
[1753531378619,37.1,187.97,187.96,4.81934884]
[1753531380543,37.1,187.97,187.96,4.16934884]
[1753531382142,37.1,187.97,187.96,4.81934884]
[1753531383045,37.1,187.97,187.96,4.87934884]
[1753531383437,0.56033517,187.99,187.96,4.87934884]
[1753531383438,0.03,187.99,187.96,4.87934884]
[1753531383739,0.03,187.99,187.98,4.16934884]
[1753531385036,0.03,187.99,187.98,9.4890637]
[1753531385556,0.03,187.99,187.98,10.1390637]
[1753531386722,0.03,187.99,187.97,31.31997303]
[1753531386924,0.68,187.98,187.96,9.54962975]
[1753531387123,37.76,187.98,187.96,9.54962975]
[1753531387325,37.76,187.98,187.96,4.22934884]
[1753531387524,37.08,187.98,187.96,0.06]
[1753531387745,0.68,187.97,187.96,0.06]
[1753531388147,1.21033517,187.97,187.96,0.06]
[1753531389919,5.37968401,187.97,187.96,0.06]
[1753531390425,27.48436585,187.97,187.96,0.06]
[1753531391945,27.76868899,187.97,187.96,0.06]
[1753531393635,42.78468397,187.96,187.91,0.06]
[1753531393960,30.16934884,187.92,187.91,0.06]
[1753531394133,67.77968401,187.92,187.91,0.06]
[1753531394329,68.45968401,187.92,187.91,0.06]
[1753531394949,73.78109737,187.92,187.91,0.06]
[1753531396043,74.06542051,187.92,187.91,0.06]
[1753531397538,90.85010448,187.92,187.91,0.06]
[1753531402243,49.60075564,187.92,187.91,0.06]
[1753531402558,90.58578134,187.92,187.91,0.06]
[1753531404274,42.92684554,187.88,187.87,0.06]
[1753531404560,84.72652955,187.88,187.87,0.06]
[1753531404760,85.40652955,187.88,187.87,0.06]
[1753531405428,53.62907585,187.88,187.87,0.06]
[1753531405628,90.72907585,187.88,187.87,0.06]
[1753531406049,90.87123742,187.88,187.87,0.06]
[1753531406263,53.09123742,187.88,187.87,0.06]
[1753531406461,90.19123742,187.88,187.87,0.06]
[1753531406769,84.58436798,187.88,187.87,0.06]
[1753531407067,37.63033517,187.88,187.87,0.06]
[1753531409567,37.63033517,187.88,187.87,0.77]
[1753531410270,37.1,187.88,187.87,0.77]
[1753531412557,37.1,187.88,187.87,6.09282961]
[1753531412759,37.1,187.88,187.87,10.26217845]
[1753531414574,37.1,187.88,187.87,6.09282961]
[1753531415067,37.1,187.88,187.87,10.26217845]
[1753531419973,37.1,187.88,187.87,4.22934884]
[1753531421050,37.1,187.88,187.87,9.55217845]
[1753531421646,37.1,187.88,187.87,10.21217845]
[1753531426068,37.1,187.88,187.87,9.55217845]
[1753531429376,37.77,187.88,187.87,0.06]
[1753531430975,37.1,187.88,187.87,4.22934884]
[1753531431978,37.1,187.88,187.87,10.21217845]
[1753531432582,37.1,187.88,187.87,9.55217845]
[1753531432979,37.1,187.88,187.87,5.38282961]
[1753531433384,37.1,187.88,187.87,9.55217845]
[1753531435789,37.1,187.88,187.87,4.22934884]
[1753531439193,37.77,187.88,187.87,4.22934884]
[1753531439596,37.77,187.88,187.87,0.06]
[1753531441990,38.30033517,187.88,187.87,0.06]
[1753531442898,37.77,187.88,187.87,0.06]
[1753531443778,0.67,187.88,187.87,0.06]
[1753531443981,37.77,187.88,187.87,0.06]
[1753531449690,0.67,187.88,187.87,0.06]
[1753531449895,37.77,187.88,187.87,0.06]
[1753531450702,0.53033517,187.89,187.87,0.73]
[1753531451007,0.03,187.91,187.88,4.83934884]
[1753531451300,0.03,187.91,187.9,4.16934884]
[1753531451891,37.13,187.91,187.9,4.16934884]
[1753531452719,37.13,187.91,187.89,4.16934884]
[1753531452882,37.13,187.91,187.88,4.16934884]
[1753531453209,0.68,187.9,187.88,4.16934884]
[1753531453588,0.68,187.9,187.87,4.22934884]
[1753531453787,0.68,187.89,187.87,4.22934884]
[1753531453992,37.1,187.88,187.87,4.22934884]
[1753531455593,37.78,187.88,187.87,0.06]
[1753531457908,47.27189514,187.88,187.87,0.06]
[1753531458612,64.05657911,187.88,187.87,0.06]
[1753531458793,59.88723027,187.88,187.87,0.06]
[1753531458994,64.05657911,187.88,187.87,0.06]
[1753531459198,64.58691428,187.88,187.87,0.06]
[1753531461498,59.26436798,187.88,187.87,0.06]
[1753531461703,55.09501914,187.88,187.87,0.06]
[1753531464425,60.41756544,187.88,187.87,0.06]
[1753531464724,64.58691428,187.88,187.87,0.06]
[1753531467326,60.41756544,187.88,187.87,0.06]
[1753531467627,64.58691428,187.88,187.87,0.06]
[1753531469627,55.09501914,187.88,187.87,0.06]
[1753531471021,60.41756544,187.88,187.87,0.06]
[1753531471209,64.58691428,187.88,187.87,0.06]
[1753531473131,60.55972701,187.88,187.87,0.06]
[1753531473326,64.72907585,187.88,187.87,0.06]
[1753531473524,64.87123742,187.88,187.87,0.06]
[1753531474527,27.77123742,187.88,187.87,0.06]
[1753531474833,64.87123742,187.88,187.87,0.06]
[1753531477039,64.90123742,187.88,187.87,0.06]
[1753531478206,60.73188858,187.88,187.87,0.06]
[1753531478432,64.90123742,187.88,187.87,0.06]
[1753531481336,63.5140607,187.88,187.87,0.06]
[1753531481838,67.68340954,187.88,187.87,0.06]
[1753531484750,66.18805889,187.88,187.87,0.06]
[1753531488540,69.75227466,187.88,187.87,0.06]
[1753531488742,42.78468397,187.86,187.85,0.06]
[1753531488932,86.6532331,187.86,187.85,0.06]
[1753531489239,87.3632331,187.86,187.85,0.06]
[1753531489542,87.50539467,187.86,187.85,0.06]
[1753531489946,90.15450943,187.86,187.85,0.06]
[1753531490244,92.82850762,187.86,187.85,0.06]
[1753531490436,96.78597468,187.86,187.85,0.06]
[1753531490840,98.29198998,187.86,187.85,0.06]
[1753531492251,98.43415155,187.86,187.85,0.06]
[1753531492434,98.43382738,187.86,187.85,0.06]
[1753531492772,94.86961161,187.86,187.85,0.06]
[1753531494249,98.43061014,187.86,187.85,0.06]
[1753531495224,101.20805964,187.86,187.85,0.06]
[1753531496334,97.02804615,187.86,187.85,0.06]
[1753531496654,3.30778467,187.86,187.85,0.74]
[1753531496865,0.03,187.91,187.85,4.92001349]
[1753531497031,37.1,187.9,187.88,4.18001349]
[1753531497235,37.1,187.9,187.89,0.68]
[1753531498627,37.1,187.9,187.89,4.86001349]
[1753531499651,37.1,187.9,187.89,0.68]
[1753531500543,37.1,187.9,187.89,4.86001349]
[1753531501972,37.1,187.9,187.89,0.68]
[1753531505745,37.1,187.9,187.89,4.86001349]
[1753531506944,37.1,187.9,187.88,10.27891349]
[1753531507150,37.1,187.9,187.88,6.0989]
[1753531509664,37.1,187.9,187.88,6.7989]
[1753531510053,37.1,187.9,187.88,6.0989]
[1753531510454,37.1,187.9,187.88,6.7989]
[1753531511167,37.1,187.9,187.88,6.0989]
[1753531512070,16.78468397,187.88,187.85,0.06]
[1753531512251,41.79034866,187.87,187.85,0.06]
[1753531512451,42.45034866,187.87,187.85,0.06]
[1753531512656,0.66,187.86,187.85,0.06]
[1753531512851,37.61033517,187.87,187.85,0.06]
[1753531513054,31.46417832,187.9,187.85,0.76]
[1753531513055,37.08,187.86,187.85,0.76]
[1753531513370,37.08,187.86,187.85,4.24001349]
[1753531513753,37.08,187.86,187.85,4.94001349]
[1753531514463,37.08,187.86,187.85,0.76]
[1753531514770,37.74,187.86,187.85,0.06]
[1753531516963,37.08,187.86,187.85,0.06]
[1753531517147,37.08,187.86,187.85,0.76]
[1753531517465,37.08,187.86,187.85,4.94001349]
[1753531517670,37.1,187.86,187.85,4.94001349]
[1753531518164,37.1,187.86,187.85,11.92200981]
[1753531521267,37.1,187.86,187.85,18.17100981]
[1753531521487,37.1,187.9,187.85,31.47950062]
[1753531521682,37.1,187.9,187.89,4.18001349]
[1753531521847,37.1,187.9,187.89,4.88001349]
[1753531522976,37.1,187.9,187.89,10.20227651]
[1753531524954,0.03,187.91,187.89,10.20227651]
[1753531525154,0.03,187.91,187.9,6.02197977]
[1753531525371,0.03,187.91,187.9,10.20199326]
[1753531530475,0.03,187.91,187.9,22.69472989]
[1753531530774,1e-08,187.91,187.9,110.09472989]
[1753531530979,1e-08,187.91,187.9,127.41161183]
[1753531531160,0.03,187.94,187.93,26.0]
[1753531531476,0.03,187.94,187.93,30.18001349]
[1753531531679,0.03,187.94,187.93,31.41212651]
[1753531532368,0.03,187.94,187.93,36.73325671]
[1753531534365,0.03,187.94,187.93,36.03325671]
[1753531534585,0.03,187.94,187.93,35.50114369]
[1753531536685,0.03,187.94,187.93,30.18001349]
[1753531536982,0.7,187.94,187.93,35.50114369]
[1753531537378,0.03,187.94,187.93,35.50114369]
[1753531538271,0.7,187.94,187.93,30.18001349]
[1753531538468,0.03,187.94,187.93,30.18001349]
[1753531538676,0.7,187.94,187.91,4.18001349]
[1753531538885,0.7,187.94,187.9,4.18001349]
[1753531539584,0.03,187.94,187.93,4.18001349]
[1753531539961,0.7,187.94,187.93,4.18001349]
[1753531540383,0.7,187.94,187.93,9.50114369]
[1753531541681,0.7,187.94,187.9,5.32197977]
[1753531541879,0.7,187.94,187.93,4.18001349]
[1753531542271,0.03,187.94,187.93,4.18001349]
[1753531542583,0.03,187.94,187.93,4.90001349]
[1753531543478,0.03,187.94,187.93,4.18001349]
[1753531546187,0.03,187.94,187.93,9.50114369]
[1753531549283,0.7,187.94,187.93,4.18001349]
[1753531549789,0.7,187.94,187.89,113.4]
[1753531549790,0.7,187.94,187.91,4.18001349]
[1753531549989,0.7,187.94,187.9,4.18001349]
[1753531550369,0.7,187.94,187.89,4.18001349]
[1753531550673,0.53033517,187.93,187.88,4.18001349]
[1753531550878,0.67,187.92,187.88,4.18001349]
[1753531551091,37.08,187.91,187.88,4.18001349]
[1753531551384,37.08,187.91,187.88,9.50246575]
[1753531551385,0.67,187.9,187.88,9.50246575]
[1753531551689,37.08,187.91,187.88,9.50246575]
[1753531551868,37.75,187.91,187.88,9.50246575]
[1753531552073,0.67,187.9,187.88,9.50246575]
[1753531552378,0.67,187.9,187.89,4.18001349]
[1753531552585,0.67,187.9,187.88,9.50246575]
[1753531553487,37.08,187.91,187.88,9.50246575]
[1753531553701,0.67,187.89,187.85,0.06]
[1753531553879,0.53033517,187.88,187.85,5.3833838]
[1753531554077,0.67,187.88,187.85,9.56339729]
[1753531554393,0.67,187.9,187.87,4.18001349]
[1753531554590,0.67,187.89,187.87,4.18001349]
[1753531555395,0.67,187.89,187.85,6.1033838]
[1753531555572,0.67,187.89,187.87,4.18001349]
[1753531556395,0.67,187.89,187.87,9.50279164]
[1753531556592,38.28033517,187.91,187.88,4.18001349]
[1753531556796,37.85,187.9,187.88,4.18001349]
[1753531556995,37.85,187.89,187.86,9.50309548]
[1753531557194,37.85,187.89,187.85,0.06]
[1753531557195,1.20033517,187.88,187.85,0.06]
[1753531557587,0.53033517,187.88,187.85,0.06]
[1753531557799,0.67,187.87,187.85,0.06]
[1753531559975,0.53033517,187.88,187.85,0.06]
[1753531560322,0.67,187.87,187.85,0.06]
[1753531560490,0.67,187.87,187.85,4.24001349]
[1753531561397,0.67,187.86,187.85,4.24001349]
[1753531562179,0.67,187.86,187.85,9.56340981]
[1753531563499,37.18,187.89,187.85,9.56340981]
[1753531563688,0.67,187.88,187.85,9.56340981]
[1753531563890,0.67,187.87,187.85,9.56340981]
[1753531564188,0.67,187.86,187.85,5.38339632]
[1753531565676,37.18,187.89,187.85,0.06]
[1753531565902,0.67,187.88,187.85,4.24001349]
[1753531566092,37.88,187.87,187.85,4.24001349]
[1753531566782,37.88,187.87,187.85,9.56333941]
[1753531567278,0.72,187.86,187.85,9.56333941]
[1753531569603,37.16,187.87,187.85,9.56333941]
[1753531569799,37.88,187.87,187.85,9.56333941]
[1753531570306,37.14,187.88,187.86,4.85001349]
[1753531570511,37.14,187.88,187.85,5.38332592]
[1753531570512,37.14,187.88,187.87,4.85001349]
[1753531570720,37.14,187.88,187.87,30.85001349]
[1753531571021,37.14,187.91,187.87,30.85001349]
[1753531571320,37.14,187.91,187.9,4.18001349]
[1753531572211,37.14,187.91,187.9,4.85001349]
[1753531572420,37.14,187.91,187.9,10.17199326]
[1753531573721,37.89,187.94,187.9,10.17199326]
[1753531573920,37.89,187.94,187.93,9.50114369]
[1753531576119,37.17,187.94,187.93,10.17114369]
[1753531578217,0.03,187.94,187.93,9.50114369]
[1753531581915,0.03,187.94,187.92,5.32141336]
[1753531582108,0.03,187.94,187.91,91.58001349]
[1753531582109,0.75,187.94,187.91,91.58001349]
[1753531582313,0.75,187.94,187.91,87.4]
[1753531582511,0.75,187.94,187.92,4.18001349]
[1753531584916,0.75,187.94,187.91,96.90148838]
[1753531585511,0.75,187.94,187.91,87.4]
[1753531585822,0.75,187.94,187.91,92.72168227]
[1753531586018,0.75,187.94,187.91,5.32168227]
[1753531586216,0.75,187.94,187.91,9.50169576]
[1753531587428,0.72,187.93,187.91,9.50169576]
[1753531587813,0.03,187.94,187.91,9.50169576]
[1753531588123,0.75,187.94,187.91,9.50169576]
[1753531590340,0.72,187.93,187.91,4.18001349]
[1753531590519,0.03,187.94,187.9,9.50199326]
[1753531590709,0.03,187.94,187.89,9.50226499]
[1753531590710,0.72,187.92,187.89,9.50226499]
[1753531590916,37.84,187.92,187.89,5.3222515]
[1753531591107,0.72,187.91,187.89,5.3222515]
[1753531591306,37.12,187.92,187.89,5.3222515]
[1753531591307,0.72,187.9,187.89,5.3222515]
[1753531591618,0.72,187.9,187.87,9.5028431]
[1753531593033,37.12,187.92,187.87,5.32282961]
[1753531593234,0.72,187.89,187.86,5.32303892]
[1753531593606,0.72,187.89,187.85,5.38337406]
[1753531593902,1.25033517,187.89,187.85,5.38337406]
[1753531594101,0.72,187.88,187.85,5.38337406]
[1753531594305,37.14,187.87,187.85,9.56338755]
[1753531594856,37.86,187.87,187.85,9.56338755]
[1753531595442,37.86,187.87,187.85,5.38337406]
[1753531596248,37.14,187.87,187.85,5.38337406]
[1753531596710,37.86,187.87,187.85,5.38337406]
[1753531598043,37.14,187.87,187.85,5.38337406]
[1753531598224,37.14,187.87,187.85,9.56338755]
[1753531599640,37.14,187.87,187.85,10.27338755]
[1753531599825,37.14,187.87,187.86,4.18001349]
[1753531600138,37.14,187.87,187.85,6.09337406]
[1753531600349,5.32118643,187.93,187.85,6.09337406]
[1753531600350,1.25033517,187.93,187.88,26.0]
[1753531600505,37.26,187.92,187.9,4.18001349]
[1753531601005,37.26,187.92,187.88,26.71]
[1753531601208,37.26,187.92,187.91,4.18001349]
[1753531601856,37.26,187.92,187.91,9.50171004]
[1753531604148,37.98,187.92,187.89,5.32226302]
[1753531604360,0.72,187.91,187.88,9.50253564]
[1753531604659,1.25033517,187.91,187.86,9.50305983]
[1753531604864,0.53033517,187.91,187.86,9.50305983]
[1753531605030,0.72,187.9,187.86,9.50305983]
[1753531607652,0.72,187.9,187.85,35.56340978]
[1753531607839,0.53033517,187.89,187.85,35.56340978]
[1753531608038,0.72,187.88,187.85,35.56340978]
[1753531608234,37.24,187.87,187.85,35.56340978]
[1753531608432,37.96,187.87,187.85,9.56340978]
[1753531609046,37.96,187.87,187.85,0.06]
[1753531609263,37.24,187.87,187.85,4.24001349]
[1753531609458,37.24,187.87,187.86,4.18001349]
[1753531609636,37.24,187.87,187.86,4.89001349]
[1753531609955,37.24,187.87,187.86,4.18001349]
[1753531610340,37.24,187.87,187.86,4.89001349]
[1753531610545,37.24,187.88,187.86,30.89001349]
[1753531610738,37.24,187.89,187.87,4.89001349]
[1753531610940,37.24,187.89,187.88,4.18001349]
[1753531611140,37.24,187.89,187.88,9.50255979]
[1753531611768,37.24,187.89,187.88,10.21255979]
[1753531612069,37.24,187.89,187.88,6.0325463]
[1753531612236,37.24,187.89,187.88,10.21255979]
[1753531613661,37.22,187.93,187.88,10.21255979]
[1753531613849,37.94,187.93,187.92,4.18001349]
[1753531616366,37.22,187.93,187.92,9.50142685]
[1753531617266,37.22,187.93,187.92,4.18001349]
[1753531617434,37.94,187.93,187.92,4.18001349]
[1753531617757,37.94,187.93,187.91,4.18001349]
[1753531617948,0.72,187.92,187.91,4.18001349]
[1753531618462,0.72,187.92,187.9,35.50187978]
[1753531619763,0.72,187.92,187.91,4.18001349]
[1753531620234,0.72,187.92,187.9,31.32186629]
[1753531620433,0.72,187.92,187.91,4.18001349]
[1753531622963,0.72,187.92,187.87,35.5028131]
[1753531623159,1.25033517,187.92,187.87,31.32279961]
[1753531623666,0.72,187.91,187.87,31.32279961]
[1753531624959,0.72,187.91,187.88,4.18001349]
[1753531625150,0.53033517,187.92,187.88,4.18001349]
[1753531625358,0.72,187.91,187.88,4.18001349]
[1753531626271,0.69,187.9,187.88,4.18001349]
[1753531626448,37.18,187.89,187.88,4.18001349]
[1753531627151,37.18,187.89,187.88,9.50255979]
[1753531627775,37.18,187.89,187.88,4.18001349]
[1753531628370,37.18,187.89,187.88,9.50255979]
[1753531629463,37.18,187.89,187.88,4.18001349]
[1753531631375,37.18,187.89,187.88,9.50255979]
[1753531633570,37.18,187.89,187.88,10.19255979]
[1753531635071,37.18,187.89,187.87,31.32278557]
[1753531635557,37.18,187.89,187.88,9.50255979]
[1753531635949,37.87,187.89,187.87,35.50281445]
[1753531638278,0.69,187.88,187.86,9.50309419]
[1753531638469,37.18,187.89,187.86,9.50309419]
[1753531638654,0.69,187.88,187.86,9.50309419]
[1753531639177,0.69,187.87,187.86,5.3230807]
[1753531639767,0.69,187.87,187.85,0.06]
[1753531642282,37.18,187.89,187.85,0.06]
[1753531642283,37.87,187.89,187.85,0.06]
[1753531642580,0.69,187.88,187.84,30.18001349]
[1753531642778,0.69,187.87,187.84,30.18001349]
[1753531642956,37.87,187.89,187.85,4.18001349]
[1753531643966,37.87,187.89,187.86,5.32311295]
[1753531644381,37.18,187.89,187.86,10.19312644]
[1753531644984,37.87,187.89,187.86,9.50312644]
[1753531646483,0.69,187.88,187.86,5.32311295]
[1753531647066,0.69,187.87,187.85,5.32333703]
[1753531647262,0.69,187.86,187.85,5.32333703]
[1753531648185,0.69,187.86,187.84,26.0]
[1753531648480,37.16,187.85,187.83,5.38373002]
[1753531648677,0.69,187.84,187.83,5.38373002]
[1753531649880,37.14,187.84,187.83,5.38373002]
[1753531651383,37.83,187.84,187.83,5.38373002]
[1753531652369,37.83,187.84,187.83,0.06]
[1753531656085,64.64871235,187.84,187.83,0.06]
[1753531656799,64.79087392,187.84,187.83,0.06]
[1753531663600,60.753022,187.84,187.83,0.06]
[1753531663781,64.93303549,187.84,187.83,0.06]
[1753531666495,60.753022,187.84,187.83,0.06]
[1753531666810,55.18501914,187.84,187.83,0.06]
[1753531667106,55.32718071,187.84,187.83,0.06]
[1753531667311,55.46934228,187.84,187.83,0.06]
[1753531667513,59.64935577,187.84,187.83,0.06]
[1753531667811,64.97303549,187.84,187.83,0.06]
[1753531668894,59.64935577,187.84,187.83,0.06]
[1753531669198,55.46934228,187.84,187.83,0.06]
[1753531669408,59.64935577,187.84,187.83,0.06]
[1753531670415,55.46934228,187.84,187.83,0.06]
[1753531670599,59.64935577,187.84,187.83,0.06]
[1753531674708,58.95935577,187.84,187.83,0.06]
[1753531675391,59.62935577,187.84,187.83,0.06]
[1753531679720,55.44934228,187.84,187.83,0.06]
[1753531679911,59.62935577,187.84,187.83,0.06]
[1753531680299,58.95935577,187.84,187.83,0.06]
[1753531680999,59.62935577,187.84,187.83,0.06]
[1753531681199,16.78468397,187.83,187.79,5.44499234]
[1753531681395,37.67033517,187.82,187.79,0.12]
[1753531681818,37.67033517,187.82,187.79,5.44507902]
[1753531684329,38.34033517,187.82,187.79,5.44507902]
[1753531684830,37.67033517,187.82,187.79,5.44507902]
[1753531686431,38.35033517,187.82,187.79,5.44507902]
[1753531688429,0.53033517,187.83,187.8,2.88464061]
[1753531688640,37.12,187.82,187.8,2.88464061]
[1753531689001,37.12,187.82,187.81,5.32453011]
[1753531691521,37.8,187.82,187.81,5.32453011]
[1753531693423,37.8,187.82,187.8,5.32481363]
[1753531694102,1.21033517,187.81,187.79,0.12]